[Event "November 21 Early 2023"]
[Site "https://www.chess.com"]
[Date "2023.11.21"]
[Round "1"]
[White "Marchesich, Giovanni"]
[Black "GaiozNigalidze"]
[Result "1-0"]
[Board "130"]
[TimeControl "180+1"]
[WhiteFideId "2824790"]
[WhiteElo "2198"]
[BlackElo "2675"]
[WhiteTeam "ITA"]
[WhiteClock "0:00:27"]
[BlackClock "0:00:46"]

1. e4 {[%clk 0:03:00]}  c5 {[%clk 0:02:59]} 2. Nf3 {[%clk 0:03:00]}  Nc6 {[%clk 0:02:57]} 3. Nc3 {[%clk 0:02:59]}  Nf6 {[%clk 0:02:56]} 4. d4 {[%clk 0:02:44]}  cxd4 {[%clk 0:02:56]} 5. Nxd4 {[%clk 0:02:45]}  e5 {[%clk 0:02:56]} 6. Ndb5 {[%clk 0:02:44]}  d6 {[%clk 0:02:56]} 7. Bg5 {[%clk 0:02:42]}  a6 {[%clk 0:02:56]} 8. Na3 {[%clk 0:02:43]}  b5 {[%clk 0:02:56]} 9. Nab1 {[%clk 0:02:43]}  Be7 {[%clk 0:02:53]} 10. Bxf6 {[%clk 0:02:41]}  Bxf6 {[%clk 0:02:52]} 11. Nd5 {[%clk 0:02:42]}  Bg5 {[%clk 0:02:49]} 12. c3 {[%clk 0:02:36]}  O-O {[%clk 0:02:48]} 13. Be2 {[%clk 0:02:32]}  Be6 {[%clk 0:02:47]} 14. O-O {[%clk 0:02:32]}  Ne7 {[%clk 0:02:46]} 15. a4 {[%clk 0:02:23]}  Nxd5 {[%clk 0:02:36]} 16. exd5 {[%clk 0:02:23]}  Bd7 {[%clk 0:02:37]} 17. axb5 {[%clk 0:02:16]}  axb5 {[%clk 0:02:37]} 18. Rxa8 {[%clk 0:02:16]}  Qxa8 {[%clk 0:02:38]} 19. Na3 {[%clk 0:02:17]}  Rb8 {[%clk 0:02:37]} 20. Qb3 {[%clk 0:02:09]}  Qa5 {[%clk 0:02:19]} 21. Ra1 {[%clk 0:02:05]}  g6 {[%clk 0:02:15]} 22. Nc2 {[%clk 0:02:03]}  Qb6 {[%clk 0:02:12]} 23. Qa2 {[%clk 0:01:56]}  Bh4 {[%clk 0:02:05]} 24. g3 {[%clk 0:01:53]}  Bd8 {[%clk 0:01:50]} 25. Qa7 {[%clk 0:01:50]}  Be8 {[%clk 0:01:46]} 26. Ra6 {[%clk 0:01:42]}  Qxa7 {[%clk 0:01:45]} 27. Rxa7 {[%clk 0:01:43]}  Kf8 {[%clk 0:01:34]} 28. Ra6 {[%clk 0:01:32]}  Bb6 {[%clk 0:01:17]} 29. Nb4 {[%clk 0:01:29]}  Ke7 {[%clk 0:01:16]} 30. Nc6+ {[%clk 0:01:29]}  Bxc6 {[%clk 0:01:15]} 31. dxc6 {[%clk 0:01:29]}  Bc7 {[%clk 0:01:14]} 32. Ra7 {[%clk 0:01:25]}  Kd8 {[%clk 0:01:13]} 33. Rb7 {[%clk 0:01:21]}  Rxb7 {[%clk 0:01:10]} 34. cxb7 {[%clk 0:01:20]}  b4 {[%clk 0:01:11]} 35. c4 {[%clk 0:01:15]}  Bb8 {[%clk 0:01:10]} 36. b3 {[%clk 0:01:14]}  Kc7 {[%clk 0:01:04]} 37. Bf3 {[%clk 0:01:14]}  Kb6 {[%clk 0:01:04]} 38. Bd5 {[%clk 0:01:05]}  f6 {[%clk 0:01:02]} 39. Kf1 {[%clk 0:00:59]}  Kc5 {[%clk 0:01:01]} 40. Ke2 {[%clk 0:00:56]}  Kd4 {[%clk 0:01:01]} 41. f3 {[%clk 0:00:51]}  Kc3 {[%clk 0:01:00]} 42. c5 {[%clk 0:00:51]}  dxc5 {[%clk 0:00:56]} 43. Ke3 {[%clk 0:00:48]}  f5 {[%clk 0:00:52]} 44. g4 {[%clk 0:00:46]}  Ba7 {[%clk 0:00:51]} 45. Bc4 {[%clk 0:00:44]}  Kc2 {[%clk 0:00:51]} 46. h4 {[%clk 0:00:40]}  Kc3 {[%clk 0:00:48]} 47. h5 {[%clk 0:00:38]}  gxh5 {[%clk 0:00:48]} 48. gxf5 {[%clk 0:00:29]}  h4 {[%clk 0:00:48]} 49. f6 {[%clk 0:00:29]}  h3 {[%clk 0:00:48]} 50. Kf2 {[%clk 0:00:27]}  e4 {[%clk 0:00:46]} 1-0

[Event "November 21 Early 2023"]
[Site "https://www.chess.com"]
[Date "2023.11.21"]
[Round "1"]
[White "Wu, Derek"]
[Black "ploxoi"]
[Result "0-1"]
[Board "133"]
[TimeControl "180+1"]
[WhiteFideId "30914558"]
[WhiteElo "2211"]
[BlackElo "2397"]
[WhiteTeam "USA"]
[WhiteClock "0:01:30"]
[BlackClock "0:02:33"]

1. d4 {[%clk 0:03:00]}  e6 {[%clk 0:02:59]} 2. e4 {[%clk 0:03:00]}  d5 {[%clk 0:02:59]} 3. Nc3 {[%clk 0:02:59]}  Bb4 {[%clk 0:02:59]} 4. e5 {[%clk 0:02:59]}  Ne7 {[%clk 0:02:59]} 5. a3 {[%clk 0:02:54]}  Bxc3+ {[%clk 0:02:59]} 6. bxc3 {[%clk 0:02:55]}  c5 {[%clk 0:03:00]} 7. Qg4 {[%clk 0:02:55]}  cxd4 {[%clk 0:02:58]} 8. Qxg7 {[%clk 0:02:40]}  Rg8 {[%clk 0:02:58]} 9. Qxh7 {[%clk 0:02:41]}  Qc7 {[%clk 0:02:58]} 10. Ne2 {[%clk 0:02:33]}  Nbc6 {[%clk 0:02:57]} 11. f4 {[%clk 0:02:31]}  dxc3 {[%clk 0:02:57]} 12. Qd3 {[%clk 0:02:22]}  d4 {[%clk 0:02:57]} 13. Nxd4 {[%clk 0:02:16]}  Nxd4 {[%clk 0:02:57]} 14. Qxd4 {[%clk 0:02:17]}  Bd7 {[%clk 0:02:55]} 15. Rb1 {[%clk 0:01:50]}  Nf5 {[%clk 0:02:52]} 16. Qc4 {[%clk 0:01:43]}  Qxc4 {[%clk 0:02:35]} 17. Bxc4 {[%clk 0:01:44]}  Rxg2 {[%clk 0:02:35]} 18. Rxb7 {[%clk 0:01:41]}  Rxc2 {[%clk 0:02:35]} 19. Bd3 {[%clk 0:01:30]}  Rxc1+ {[%clk 0:02:33]} 0-1

[Event "November 21 Early 2023"]
[Site "https://www.chess.com"]
[Date "2023.11.21"]
[Round "1"]
[White "Sharafiev, Azat"]
[Black "FrenchHarvey"]
[Result "0-1"]
[Board "136"]
[TimeControl "180+1"]
[WhiteFideId "4186214"]
[WhiteElo "2306"]
[BlackElo "2671"]
[WhiteTeam "RUS"]
[WhiteClock "0:00:11"]
[BlackClock "0:00:25"]

1. Nf3 {[%clk 0:02:59]}  d5 {[%clk 0:02:57]} 2. e3 {[%clk 0:02:58]}  Nf6 {[%clk 0:02:56]} 3. c4 {[%clk 0:02:58]}  c6 {[%clk 0:02:56]} 4. b3 {[%clk 0:02:58]}  Bf5 {[%clk 0:02:56]} 5. Bb2 {[%clk 0:02:57]}  e6 {[%clk 0:02:56]} 6. Be2 {[%clk 0:02:55]}  Nbd7 {[%clk 0:02:57]} 7. O-O {[%clk 0:02:55]}  Bd6 {[%clk 0:02:55]} 8. d4 {[%clk 0:02:55]}  Ne4 {[%clk 0:02:54]} 9. Nbd2 {[%clk 0:02:54]}  O-O {[%clk 0:02:48]} 10. Ne5 {[%clk 0:02:52]}  Nxe5 {[%clk 0:02:41]} 11. dxe5 {[%clk 0:02:52]}  Bb4 {[%clk 0:02:39]} 12. Nxe4 {[%clk 0:02:51]}  Bxe4 {[%clk 0:02:35]} 13. cxd5 {[%clk 0:02:46]}  cxd5 {[%clk 0:02:34]} 14. Qd4 {[%clk 0:02:45]}  Be7 {[%clk 0:02:30]} 15. Rac1 {[%clk 0:02:42]}  Qd7 {[%clk 0:02:29]} 16. f3 {[%clk 0:02:38]}  Bg6 {[%clk 0:02:29]} 17. e4 {[%clk 0:02:34]}  b6 {[%clk 0:02:25]} 18. Kh1 {[%clk 0:02:32]}  Bc5 {[%clk 0:02:25]} 19. Qd2 {[%clk 0:02:30]}  Rad8 {[%clk 0:02:23]} 20. Rfd1 {[%clk 0:02:29]}  Qb7 {[%clk 0:02:23]} 21. exd5 {[%clk 0:02:15]}  Rxd5 {[%clk 0:02:23]} 22. Qf4 {[%clk 0:02:13]}  Rfd8 {[%clk 0:02:21]} 23. Rxd5 {[%clk 0:02:12]}  Qxd5 {[%clk 0:02:22]} 24. Bc3 {[%clk 0:02:01]}  h6 {[%clk 0:01:56]} 25. h3 {[%clk 0:01:59]}  Qb7 {[%clk 0:01:23]} 26. Bc4 {[%clk 0:01:34]}  b5 {[%clk 0:01:22]} 27. Be2 {[%clk 0:01:19]}  Qb6 {[%clk 0:01:23]} 28. Rd1 {[%clk 0:01:01]}  Rc8 {[%clk 0:01:22]} 29. Bd4 {[%clk 0:00:59]}  Bxd4 {[%clk 0:01:18]} 30. Qxd4 {[%clk 0:00:58]}  Qxd4 {[%clk 0:01:17]} 31. Rxd4 {[%clk 0:00:59]}  Rc2 {[%clk 0:01:18]} 32. Bxb5 {[%clk 0:00:59]}  Rxa2 {[%clk 0:01:18]} 33. Rd8+ {[%clk 0:00:57]}  Kh7 {[%clk 0:01:18]} 34. Be8 {[%clk 0:00:54]}  Re2 {[%clk 0:01:15]} 35. Rd7 {[%clk 0:00:54]}  Kg8 {[%clk 0:01:04]} 36. Rxa7 {[%clk 0:00:50]}  Rxe5 {[%clk 0:01:03]} 37. Ra8 {[%clk 0:00:50]}  Re1+ {[%clk 0:01:00]} 38. Kh2 {[%clk 0:00:49]}  Rb1 {[%clk 0:01:00]} 39. Rb8 {[%clk 0:00:46]}  Kf8 {[%clk 0:00:57]} 40. b4 {[%clk 0:00:44]}  Ke7 {[%clk 0:00:57]} 41. b5 {[%clk 0:00:43]}  Bd3 {[%clk 0:00:44]} 42. Bc6 {[%clk 0:00:40]}  Rb2 {[%clk 0:00:41]} 43. b6 {[%clk 0:00:24]}  Kd6 {[%clk 0:00:36]} 44. Be8 {[%clk 0:00:21]}  Ke7 {[%clk 0:00:36]} 45. Ba4 {[%clk 0:00:19]}  Ba6 {[%clk 0:00:34]} 46. Bc6 {[%clk 0:00:19]}  Kd6 {[%clk 0:00:33]} 47. Be4 {[%clk 0:00:18]}  f5 {[%clk 0:00:32]} 48. Ba8 {[%clk 0:00:18]}  f4 {[%clk 0:00:30]} 49. b7 {[%clk 0:00:18]}  Ke5 {[%clk 0:00:31]} 50. Rg8 {[%clk 0:00:18]}  Bxb7 {[%clk 0:00:31]} 51. Bxb7 {[%clk 0:00:18]}  Rxb7 {[%clk 0:00:30]} 52. Ra8 {[%clk 0:00:19]}  g5 {[%clk 0:00:29]} 53. h4 {[%clk 0:00:18]}  Kf6 {[%clk 0:00:28]} 54. Rf8+ {[%clk 0:00:17]}  Kg7 {[%clk 0:00:27]} 55. Re8 {[%clk 0:00:18]}  Kf7 {[%clk 0:00:26]} 56. Rh8 {[%clk 0:00:18]}  Kg7 {[%clk 0:00:26]} 57. Re8 {[%clk 0:00:18]}  Rb6 {[%clk 0:00:27]} 58. Kh3 {[%clk 0:00:18]}  Kf7 {[%clk 0:00:27]} 59. Rh8 {[%clk 0:00:18]}  Kg6 {[%clk 0:00:27]} 60. hxg5 {[%clk 0:00:18]}  Kxg5 {[%clk 0:00:26]} 61. Rg8+ {[%clk 0:00:18]}  Kf5 {[%clk 0:00:25]} 62. Kh4 {[%clk 0:00:19]}  e5 {[%clk 0:00:23]} 63. g4+ {[%clk 0:00:17]}  fxg3 {[%clk 0:00:22]} 64. Kxg3 {[%clk 0:00:18]}  Rg6+ {[%clk 0:00:22]} 65. Rxg6 {[%clk 0:00:18]}  Kxg6 {[%clk 0:00:23]} 66. Kg4 {[%clk 0:00:18]}  Kf6 {[%clk 0:00:22]} 67. f4 {[%clk 0:00:14]}  e4 {[%clk 0:00:22]} 68. Kh3 {[%clk 0:00:12]}  Kf5 {[%clk 0:00:22]} 69. Kg3 {[%clk 0:00:13]}  h5 {[%clk 0:00:23]} 70. Kf2 {[%clk 0:00:13]}  Kxf4 {[%clk 0:00:24]} 71. Ke2 {[%clk 0:00:14]}  e3 {[%clk 0:00:24]} 72. Kf1 {[%clk 0:00:14]}  Kf3 {[%clk 0:00:25]} 73. Ke1 {[%clk 0:00:11]}  e2 {[%clk 0:00:25]} 0-1

[Event "November 21 Early 2023"]
[Site "https://www.chess.com"]
[Date "2023.11.21"]
[Round "1"]
[White "Skliarov, Viktor"]
[Black "Sliwicki, Damian"]
[Result "1-0"]
[Board "137"]
[TimeControl "180+1"]
[WhiteFideId "14106736"]
[BlackFideId "1127128"]
[WhiteElo "2304"]
[BlackElo "1992"]
[WhiteTeam "UKR"]
[BlackTeam "POL"]
[WhiteClock "0:00:07"]
[BlackClock "0:00:07"]

1. e4 {[%clk 0:02:59]}  c5 {[%clk 0:02:50]} 2. Nf3 {[%clk 0:02:54]}  g6 {[%clk 0:02:44]} 3. c3 {[%clk 0:02:50]}  Bg7 {[%clk 0:02:43]} 4. Na3 {[%clk 0:02:40]}  Nc6 {[%clk 0:02:35]} 5. h3 {[%clk 0:02:34]}  e5 {[%clk 0:02:22]} 6. Nc4 {[%clk 0:02:26]}  d5 {[%clk 0:02:20]} 7. exd5 {[%clk 0:02:07]}  Qxd5 {[%clk 0:02:21]} 8. d3 {[%clk 0:02:06]}  Be6 {[%clk 0:02:03]} 9. Ng5 {[%clk 0:01:55]}  O-O-O {[%clk 0:01:58]} 10. Nxe6 {[%clk 0:01:52]}  Qxe6 {[%clk 0:01:59]} 11. Qf3 {[%clk 0:01:38]}  f5 {[%clk 0:01:49]} 12. Be2 {[%clk 0:01:37]}  Nf6 {[%clk 0:01:41]} 13. O-O {[%clk 0:01:33]}  Kb8 {[%clk 0:01:32]} 14. Be3 {[%clk 0:01:27]}  e4 {[%clk 0:01:08]} 15. dxe4 {[%clk 0:01:20]}  Nxe4 {[%clk 0:01:09]} 16. Rad1 {[%clk 0:01:09]}  Ne5 {[%clk 0:00:51]} 17. Nxe5 {[%clk 0:01:07]}  Bxe5 {[%clk 0:00:51]} 18. Bd3 {[%clk 0:00:50]}  Ka8 {[%clk 0:00:46]} 19. Kh1 {[%clk 0:00:46]}  Qc6 {[%clk 0:00:28]} 20. Bxe4 {[%clk 0:00:28]}  fxe4 {[%clk 0:00:29]} 21. Qg4 {[%clk 0:00:28]}  h5 {[%clk 0:00:27]} 22. Qg5 {[%clk 0:00:27]}  Rde8 {[%clk 0:00:21]} 23. Rd2 {[%clk 0:00:24]}  b6 {[%clk 0:00:20]} 24. Rfd1 {[%clk 0:00:24]}  Bc7 {[%clk 0:00:19]} 25. Rd7 {[%clk 0:00:17]}  Re5 {[%clk 0:00:19]} 26. Qg3 {[%clk 0:00:13]}  Rhe8 {[%clk 0:00:18]} 27. Bf4 {[%clk 0:00:12]}  g5 {[%clk 0:00:15]} 28. Bxe5 {[%clk 0:00:11]}  Bxe5 {[%clk 0:00:15]} 29. Qxg5 {[%clk 0:00:11]}  e3 {[%clk 0:00:16]} 30. fxe3 {[%clk 0:00:10]}  Bc7 {[%clk 0:00:15]} 31. Qd5 {[%clk 0:00:09]}  Kb7 {[%clk 0:00:14]} 32. Qxc6+ {[%clk 0:00:08]}  Kxc6 {[%clk 0:00:15]} 33. Rh7 {[%clk 0:00:08]}  Rxe3 {[%clk 0:00:15]} 34. Rxh5 {[%clk 0:00:09]}  Re2 {[%clk 0:00:15]} 35. Rb1 {[%clk 0:00:07]}  b5 {[%clk 0:00:15]} 36. Rf5 {[%clk 0:00:07]}  b4 {[%clk 0:00:15]} 37. cxb4 {[%clk 0:00:07]}  cxb4 {[%clk 0:00:16]} 38. a3 {[%clk 0:00:06]}  b3 {[%clk 0:00:15]} 39. Rf3 {[%clk 0:00:06]}  a6 {[%clk 0:00:13]} 40. Rxb3 {[%clk 0:00:06]}  a5 {[%clk 0:00:13]} 41. Rc3+ {[%clk 0:00:06]}  Kb7 {[%clk 0:00:13]} 42. b4 {[%clk 0:00:07]}  a4 {[%clk 0:00:13]} 43. b5 {[%clk 0:00:07]}  Be5 {[%clk 0:00:13]} 44. Rc4 {[%clk 0:00:07]}  Ra2 {[%clk 0:00:10]} 45. Rxa4 {[%clk 0:00:07]}  Kb6 {[%clk 0:00:10]} 46. Ra6+ {[%clk 0:00:07]}  Kb7 {[%clk 0:00:10]} 47. Re6 {[%clk 0:00:07]}  Bc7 {[%clk 0:00:10]} 48. b6 {[%clk 0:00:08]}  Bb8 {[%clk 0:00:09]} 49. Re7+ {[%clk 0:00:08]}  Ka8 {[%clk 0:00:10]} 50. b7+ {[%clk 0:00:08]}  Ka7 {[%clk 0:00:10]} 51. Re8 {[%clk 0:00:07]}  Rxa3 {[%clk 0:00:10]} 52. Rxb8 {[%clk 0:00:07]}  Kxb8 {[%clk 0:00:11]} 53. Kh2 {[%clk 0:00:08]}  Rc3 {[%clk 0:00:11]} 54. h4 {[%clk 0:00:08]}  Rc7 {[%clk 0:00:11]} 55. Kh3 {[%clk 0:00:07]}  Rh7 {[%clk 0:00:12]} 56. g4 {[%clk 0:00:07]}  Rh8 {[%clk 0:00:13]} 57. h5 {[%clk 0:00:08]}  Rh7 {[%clk 0:00:13]} 58. Kh4 {[%clk 0:00:09]}  Rc7 {[%clk 0:00:11]} 59. h6 {[%clk 0:00:09]}  Rc6 {[%clk 0:00:11]} 60. Kh5 {[%clk 0:00:09]}  Rc5+ {[%clk 0:00:11]} 61. g5 {[%clk 0:00:09]}  Rc6 {[%clk 0:00:12]} 62. h7 {[%clk 0:00:09]}  Rc8 {[%clk 0:00:06]} 63. bxc8=Q+ {[%clk 0:00:09]}  Ka7 {[%clk 0:00:07]} 64. Qc7+ {[%clk 0:00:07]}  Ka8 {[%clk 0:00:07]} 65. Ra1# {[%clk 0:00:07]} 1-0

[Event "November 21 Early 2023"]
[Site "https://www.chess.com"]
[Date "2023.11.21"]
[Round "1"]
[White "Dwilewicz, Katarzyna"]
[Black "Koellner, Ruben Gideon"]
[Result "0-1"]
[Board "138"]
[TimeControl "180+1"]
[WhiteFideId "1148486"]
[BlackFideId "12993093"]
[WhiteElo "2098"]
[BlackElo "2347"]
[WhiteTeam "POL"]
[BlackTeam "GER"]
[WhiteClock "0:00:01"]
[BlackClock "0:00:18"]

1. e4 {[%clk 0:03:00]}  d6 {[%clk 0:02:57]} 2. Nc3 {[%clk 0:02:58]}  Nf6 {[%clk 0:02:55]} 3. f4 {[%clk 0:02:57]}  e5 {[%clk 0:02:51]} 4. d4 {[%clk 0:02:55]}  exd4 {[%clk 0:02:32]} 5. Qxd4 {[%clk 0:02:54]}  Nc6 {[%clk 0:02:33]} 6. Qd3 {[%clk 0:02:44]}  d5 {[%clk 0:02:12]} 7. e5 {[%clk 0:02:38]}  Nb4 {[%clk 0:01:54]} 8. Qe2 {[%clk 0:02:36]}  Ne4 {[%clk 0:01:46]} 9. Nxe4 {[%clk 0:02:33]}  dxe4 {[%clk 0:01:47]} 10. a3 {[%clk 0:02:32]}  Nd5 {[%clk 0:01:36]} 11. Qxe4 {[%clk 0:02:30]}  g6 {[%clk 0:01:35]} 12. Bc4 {[%clk 0:02:28]}  c6 {[%clk 0:01:35]} 13. Nf3 {[%clk 0:02:26]}  Bf5 {[%clk 0:01:34]} 14. Qe2 {[%clk 0:02:25]}  Bc5 {[%clk 0:01:29]} 15. h3 {[%clk 0:02:08]}  h5 {[%clk 0:01:16]} 16. Bd3 {[%clk 0:02:02]}  Bxd3 {[%clk 0:01:13]} 17. Qxd3 {[%clk 0:02:01]}  Qb6 {[%clk 0:01:09]} 18. b4 {[%clk 0:01:48]}  Bf2+ {[%clk 0:01:08]} 19. Ke2 {[%clk 0:01:48]}  O-O-O {[%clk 0:01:09]} 20. Qc4 {[%clk 0:01:29]}  Bg3 {[%clk 0:00:56]} 21. Rf1 {[%clk 0:01:20]}  Rhe8 {[%clk 0:00:53]} 22. b5 {[%clk 0:00:43]}  Qxb5 {[%clk 0:00:39]} 23. Qxb5 {[%clk 0:00:43]}  Nc3+ {[%clk 0:00:37]} 24. Ke3 {[%clk 0:00:39]}  cxb5 {[%clk 0:00:36]} 25. Nd2 {[%clk 0:00:24]}  Nd5+ {[%clk 0:00:31]} 26. Kf3 {[%clk 0:00:23]}  Bxf4 {[%clk 0:00:30]} 27. Ne4 {[%clk 0:00:18]}  Bxe5 {[%clk 0:00:28]} 28. Rb1 {[%clk 0:00:17]}  f5 {[%clk 0:00:27]} 29. Nc5 {[%clk 0:00:14]}  Nc3 {[%clk 0:00:27]} 30. Bg5 {[%clk 0:00:11]}  Rd5 {[%clk 0:00:25]} 31. Nd3 {[%clk 0:00:07]}  Nxb1 {[%clk 0:00:24]} 32. Rxb1 {[%clk 0:00:08]}  Bd6 {[%clk 0:00:23]} 33. a4 {[%clk 0:00:06]}  bxa4 {[%clk 0:00:23]} 34. Bd2 {[%clk 0:00:05]}  a3 {[%clk 0:00:23]} 35. Rb3 {[%clk 0:00:05]}  a2 {[%clk 0:00:21]} 36. Bc3 {[%clk 0:00:05]}  Rxd3+ {[%clk 0:00:18]} 37. cxd3 {[%clk 0:00:05]}  Re1 {[%clk 0:00:18]} 38. Bxe1 {[%clk 0:00:01]}  a1=Q {[%clk 0:00:19]} 39. Rc3+ {[%clk 0:00:02]}  Kd7 {[%clk 0:00:18]} 40. Bd2 {[%clk 0:00:02]}  Qd1+ {[%clk 0:00:18]} 41. Ke3 {[%clk 0:00:01]}  f4+ {[%clk 0:00:18]} 0-1

[Event "November 21 Early 2023"]
[Site "https://www.chess.com"]
[Date "2023.11.21"]
[Round "1"]
[White "Asavasaetakul, Chawit"]
[Black "Filippova, Margarita"]
[Result "1/2-1/2"]
[Board "139"]
[TimeControl "180+1"]
[WhiteFideId "6204856"]
[BlackFideId "34199680"]
[WhiteElo "1919"]
[BlackElo "1916"]
[WhiteTeam "THA"]
[BlackTeam "RUS"]
[WhiteClock "0:00:23"]
[BlackClock "0:00:11"]

1. e4 {[%clk 0:03:00]}  d5 {[%clk 0:02:59]} 2. exd5 {[%clk 0:03:00]}  Qxd5 {[%clk 0:03:00]} 3. Nc3 {[%clk 0:03:00]}  Qe5+ {[%clk 0:03:00]} 4. Nge2 {[%clk 0:02:58]}  c5 {[%clk 0:02:52]} 5. d4 {[%clk 0:02:49]}  cxd4 {[%clk 0:02:53]} 6. Qxd4 {[%clk 0:02:49]}  Qxd4 {[%clk 0:02:53]} 7. Nxd4 {[%clk 0:02:50]}  a6 {[%clk 0:02:53]} 8. Bc4 {[%clk 0:02:47]}  Nf6 {[%clk 0:02:51]} 9. O-O {[%clk 0:02:47]}  e6 {[%clk 0:02:50]} 10. Re1 {[%clk 0:02:47]}  Bb4 {[%clk 0:02:44]} 11. Bd2 {[%clk 0:02:37]}  O-O {[%clk 0:02:43]} 12. a3 {[%clk 0:02:38]}  Bc5 {[%clk 0:02:42]} 13. Nb3 {[%clk 0:02:37]}  Ba7 {[%clk 0:02:39]} 14. Bg5 {[%clk 0:02:38]}  Nbd7 {[%clk 0:02:34]} 15. Rad1 {[%clk 0:02:38]}  h6 {[%clk 0:02:31]} 16. Bh4 {[%clk 0:02:38]}  b5 {[%clk 0:02:31]} 17. Bd3 {[%clk 0:02:32]}  Bb7 {[%clk 0:02:31]} 18. Na5 {[%clk 0:02:28]}  Bd5 {[%clk 0:02:22]} 19. Nxd5 {[%clk 0:02:28]}  Nxd5 {[%clk 0:02:23]} 20. c4 {[%clk 0:02:22]}  bxc4 {[%clk 0:02:21]} 21. Bxc4 {[%clk 0:02:22]}  N7f6 {[%clk 0:02:19]} 22. b4 {[%clk 0:02:18]}  Bb6 {[%clk 0:02:16]} 23. Nb3 {[%clk 0:02:14]}  a5 {[%clk 0:02:11]} 24. b5 {[%clk 0:02:10]}  Rfc8 {[%clk 0:02:03]} 25. Bf1 {[%clk 0:02:10]}  Rc3 {[%clk 0:01:59]} 26. Rd3 {[%clk 0:02:06]}  Rac8 {[%clk 0:01:55]} 27. a4 {[%clk 0:01:52]}  Rxd3 {[%clk 0:01:52]} 28. Bxd3 {[%clk 0:01:52]}  Rc3 {[%clk 0:01:52]} 29. Nc1 {[%clk 0:01:52]}  Nb4 {[%clk 0:01:32]} 30. Bf1 {[%clk 0:01:22]}  Nfd5 {[%clk 0:01:27]} 31. Rd1 {[%clk 0:01:08]}  Ra3 {[%clk 0:01:25]} 32. Nd3 {[%clk 0:01:08]}  Rxa4 {[%clk 0:01:23]} 33. Ne5 {[%clk 0:01:08]}  Ra2 {[%clk 0:01:15]} 34. Nd7 {[%clk 0:01:07]}  a4 {[%clk 0:00:46]} 35. h3 {[%clk 0:01:03]}  a3 {[%clk 0:00:41]} 36. Bc4 {[%clk 0:01:03]}  Rb2 {[%clk 0:00:36]} 37. Bg3 {[%clk 0:00:55]}  f6 {[%clk 0:00:33]} 38. Nxb6 {[%clk 0:00:47]}  Nxb6 {[%clk 0:00:26]} 39. Bxe6+ {[%clk 0:00:48]}  Kf8 {[%clk 0:00:11]} 40. Bd6+ {[%clk 0:00:47]}  Ke8 {[%clk 0:00:11]} 41. Re1 {[%clk 0:00:46]}  Kd8 {[%clk 0:00:11]} 42. Rd1 {[%clk 0:00:35]}  Ke8 {[%clk 0:00:11]} 43. Re1 {[%clk 0:00:22]}  Kd8 {[%clk 0:00:11]} 44. Rd1 {[%clk 0:00:23]}  Ke8 {[%clk 0:00:11]} 1/2-1/2

[Event "November 21 Early 2023"]
[Site "https://www.chess.com"]
[Date "2023.11.21"]
[Round "1"]
[White "Yen, William"]
[Black "Figorito, Nick"]
[Result "1-0"]
[Board "141"]
[TimeControl "180+1"]
[WhiteFideId "30932025"]
[BlackFideId "30923689"]
[WhiteElo "1956"]
[BlackElo "2384"]
[WhiteTeam "USA"]
[BlackTeam "USA"]
[WhiteClock "0:02:05"]
[BlackClock "0:01:03"]

1. e4 {[%clk 0:03:00]}  e6 {[%clk 0:03:00]} 2. d4 {[%clk 0:02:59]}  d5 {[%clk 0:03:00]} 3. Bd3 {[%clk 0:02:58]}  Nf6 {[%clk 0:03:00]} 4. e5 {[%clk 0:02:58]}  Nfd7 {[%clk 0:03:01]} 5. f4 {[%clk 0:02:57]}  c5 {[%clk 0:03:01]} 6. c3 {[%clk 0:02:56]}  Nc6 {[%clk 0:02:59]} 7. Nf3 {[%clk 0:02:56]}  Qb6 {[%clk 0:02:54]} 8. Bc2 {[%clk 0:02:48]}  cxd4 {[%clk 0:02:43]} 9. Nxd4 {[%clk 0:02:49]}  Bc5 {[%clk 0:02:33]} 10. Nb3 {[%clk 0:02:48]}  Bf2+ {[%clk 0:02:29]} 11. Kf1 {[%clk 0:02:48]}  Bc5 {[%clk 0:02:07]} 12. Nxc5 {[%clk 0:02:43]}  Qxc5 {[%clk 0:02:08]} 13. Nd2 {[%clk 0:02:40]}  b5 {[%clk 0:02:07]} 14. Nb3 {[%clk 0:02:39]}  Qe7 {[%clk 0:02:06]} 15. Qe2 {[%clk 0:02:37]}  a5 {[%clk 0:02:01]} 16. Be3 {[%clk 0:02:36]}  a4 {[%clk 0:01:55]} 17. Nd4 {[%clk 0:02:34]}  Nxd4 {[%clk 0:01:55]} 18. Bxd4 {[%clk 0:02:35]}  Ba6 {[%clk 0:01:49]} 19. Kg1 {[%clk 0:02:33]}  O-O {[%clk 0:01:34]} 20. h4 {[%clk 0:02:28]}  f5 {[%clk 0:01:34]} 21. exf6 {[%clk 0:02:25]}  Nxf6 {[%clk 0:01:34]} 22. Rh3 {[%clk 0:02:24]}  b4 {[%clk 0:01:33]} 23. Qe5 {[%clk 0:02:21]}  b3 {[%clk 0:01:30]} 24. axb3 {[%clk 0:02:17]}  axb3 {[%clk 0:01:31]} 25. Bxb3 {[%clk 0:02:18]}  Bc4 {[%clk 0:01:29]} 26. Rxa8 {[%clk 0:02:15]}  Rxa8 {[%clk 0:01:30]} 27. Bxc4 {[%clk 0:02:15]}  dxc4 {[%clk 0:01:27]} 28. Rg3 {[%clk 0:02:07]}  h5 {[%clk 0:01:03]} 29. Qxf6 {[%clk 0:02:05]} 1-0